[Event "Sverigemastarklassen 2025"]
[Site "Uppsala, Sweden"]
[Date "2025.07.02"]
[Round "5.1"]
[White "Lokander, Martin"]
[Black "Hector, Jonny"]
[Result "1-0"]
[TimeControl "90 min for 40 move + 30 min with an increment of 30 sec starting move 1"]
[WhiteTitle "IM"]
[BlackTitle "GM"]
[WhiteFideId "1709569"]
[BlackFideId "1700090"]
[WhiteElo "2446"]
[BlackElo "2430"]

1. e4 {[%clk 01:30:52]} {[%emt 00:00:07]} e5 {[%clk 01:30:43]} {[%emt
00:00:16]} 2. Nf3 {[%clk 01:31:17]} {[%emt 00:00:06]} Nc6 {[%clk 01:31:02]}
{[%emt 00:00:10]} 3. Nc3 {[%clk 01:31:42]} {[%emt 00:00:06]} Nf6 {[%clk
01:31:18]} {[%emt 00:00:12]} 4. Bb5 {[%clk 01:32:03]} {[%emt 00:00:11]} Bd6
{[%clk 01:28:01]} {[%emt 00:03:46]} 5. d3 {[%clk 01:32:24]} {[%emt 00:00:11]}
O-O {[%clk 01:25:40]} {[%emt 00:02:49]} 6. a3 {[%clk 01:32:44]} {[%emt
00:00:12]} Ne7 {[%clk 01:21:15]} {[%emt 00:04:52]} 7. d4 {[%clk 01:26:43]}
{[%emt 00:06:32]} Ng6 {[%clk 01:19:38]} {[%emt 00:02:06]} 8. O-O {[%clk
01:24:25]} {[%emt 00:02:49]} Re8 {[%clk 01:16:16]} {[%emt 00:03:50]} 9. Re1
{[%clk 01:22:12]} {[%emt 00:02:44]} exd4 {[%clk 01:07:45]} {[%emt 00:09:01]} 10.
Nxd4 {[%clk 01:20:07]} {[%emt 00:02:36]} c6 {[%clk 01:06:49]} {[%emt 00:01:26]}
11. Bf1 {[%clk 01:17:05]} {[%emt 00:03:31]} Be5 {[%clk 01:04:04]} {[%emt
00:03:15]} 12. g3 {[%clk 01:07:18]} {[%emt 00:10:19]} d5 {[%clk 01:00:40]}
{[%emt 00:03:52]} 13. exd5 {[%clk 01:05:23]} {[%emt 00:02:27]} Bg4 {[%clk
00:59:22]} {[%emt 00:01:45]} 14. Be2 {[%clk 01:04:46]} {[%emt 00:01:08]} c5
{[%clk 00:52:46]} {[%emt 00:07:06]} 15. Bxg4 {[%clk 00:57:45]} {[%emt
00:07:32]} cxd4 {[%clk 00:51:57]} {[%emt 00:01:18]} 16. Ne4 {[%clk 00:57:57]}
{[%emt 00:00:19]} Nxg4 {[%clk 00:50:43]} {[%emt 00:01:42]} 17. Qxg4 {[%clk
00:57:47]} {[%emt 00:00:41]} Qxd5 {[%clk 00:44:30]} {[%emt 00:06:42]} 18. Bd2
{[%clk 00:54:42]} {[%emt 00:03:36]} Bc7 {[%clk 00:39:42]} {[%emt 00:05:17]} 19.
Qf3 {[%clk 00:51:22]} {[%emt 00:03:51]} Re5 {[%clk 00:32:27]} {[%emt 00:07:45]}
20. c4 {[%clk 00:40:39]} {[%emt 00:11:15]} dxc3 {[%clk 00:26:21]} {[%emt
00:06:35]} 21. Bxc3 {[%clk 00:40:34]} {[%emt 00:00:36]} Rf5 {[%clk 00:26:40]}
{[%emt 00:00:09]} 22. Rad1 {[%clk 00:40:05]} {[%emt 00:00:59]} Qe6 {[%clk
00:23:31]} {[%emt 00:03:39]} 23. Qg2 {[%clk 00:30:50]} {[%emt 00:09:45]} Qc6
{[%clk 00:20:04]} {[%emt 00:03:57]} 24. Nd6 {[%clk 00:29:27]} {[%emt 00:01:53]}
Qxg2+ {[%clk 00:14:59]} {[%emt 00:05:35]} 25. Kxg2 {[%clk 00:29:38]} {[%emt
00:00:19]} Bxd6 {[%clk 00:15:19]} {[%emt 00:00:10]} 26. Rxd6 {[%clk 00:30:04]}
{[%emt 00:00:05]} Rb5 {[%clk 00:13:31]} {[%emt 00:02:17]} 27. Re4 {[%clk
00:27:19]} {[%emt 00:03:16]} a5 {[%clk 00:10:06]} {[%emt 00:03:55]} 28. a4
{[%clk 00:25:37]} {[%emt 00:02:12]} Rb3 {[%clk 00:10:27]} {[%emt 00:00:09]} 29.
Rd5 {[%clk 00:25:06]} {[%emt 00:01:01]} Nf8 {[%clk 00:08:57]} {[%emt 00:01:59]}
30. Re7 {[%clk 00:24:33]} {[%emt 00:01:03]} Ne6 {[%clk 00:02:45]} {[%emt
00:06:42]} 31. Rf5 {[%clk 00:24:11]} {[%emt 00:00:53]} Rf8 {[%clk 00:02:40]}
{[%emt 00:00:34]} 32. Rxa5 {[%clk 00:24:10]} {[%emt 00:00:31]} b6 {[%clk
00:02:32]} {[%emt 00:00:38]} 33. Raa7 {[%clk 00:22:33]} {[%emt 00:02:08]} Nc5
{[%clk 00:02:50]} {[%emt 00:00:12]} 34. Re3 {[%clk 00:15:18]} {[%emt 00:07:44]}
h6 {[%clk 00:02:34]} {[%emt 00:00:46]} 35. h4 {[%clk 00:14:56]} {[%emt
00:00:52]} Rd8 {[%clk 00:01:31]} {[%emt 00:01:33]} 36. h5 {[%clk 00:14:51]}
{[%emt 00:00:36]} Ne6 {[%clk 00:01:34]} {[%emt 00:00:26]} 37. Re5 {[%clk
00:13:17]} {[%emt 00:02:05]} Rc8 {[%clk 00:01:10]} {[%emt 00:00:53]} 38. Rxe6
{[%clk 00:07:24]} {[%emt 00:06:24]} fxe6 {[%clk 00:01:36]} {[%emt 00:00:04]} 39.
Rxg7+ {[%clk 00:07:49]} {[%emt 00:00:05]} Kf8 {[%clk 00:01:51]} {[%emt
00:00:15]} 40. Rh7 {[%clk 00:07:56]} {[%emt 00:00:23]} Rc4 {[%clk 00:00:50]}
{[%emt 00:01:30]} 41. Rxh6 {[%clk 00:08:15]} {[%emt 00:00:12]} Rxa4 {[%clk
00:29:20]} {[%emt 00:02:00]} 42. Rh8+ {[%clk 00:36:18]} {[%emt 00:02:26]} Kf7
{[%clk 00:28:29]} {[%emt 00:01:21]} 43. Rh7+ {[%clk 00:36:42]} {[%emt
00:00:07]} Kf8 {[%clk 00:27:10]} {[%emt 00:01:48]} 44. h6 {[%clk 00:36:10]}
{[%emt 00:01:03]} Rb5 {[%clk 00:27:25]} {[%emt 00:00:14]} 45. Rb7 {[%clk
00:33:27]} {[%emt 00:03:14]} 1-0

[Event "Sverigemastarklassen 2025"]
[Site "Uppsala, Sweden"]
[Date "2025.07.02"]
[Round "5.2"]
[White "Pantzar, Milton"]
[Black "Galperin, Platon"]
[Result "0-1"]
[TimeControl "90 min for 40 move + 30 min with an increment of 30 sec starting move 1"]
[WhiteTitle "IM"]
[BlackTitle "GM"]
[WhiteFideId "1721003"]
[BlackFideId "14165414"]
[WhiteElo "2450"]
[BlackElo "2500"]

1. d4 {[%clk 01:30:54]} {[%emt 00:00:04]} Nf6 {[%clk 01:30:40]} {[%emt
00:00:21]} 2. Nf3 {[%clk 01:31:08]} {[%emt 00:00:16]} d5 {[%clk 01:31:04]}
{[%emt 00:00:06]} 3. c4 {[%clk 01:31:18]} {[%emt 00:00:20]} e6 {[%clk
01:31:29]} {[%emt 00:00:05]} 4. g3 {[%clk 01:31:29]} {[%emt 00:00:19]} Bb4+
{[%clk 01:31:54]} {[%emt 00:00:06]} 5. Bd2 {[%clk 01:31:42]} {[%emt 00:00:16]}
Be7 {[%clk 01:32:15]} {[%emt 00:00:09]} 6. Bg2 {[%clk 01:30:51]} {[%emt
00:01:21]} Nbd7 {[%clk 01:32:36]} {[%emt 00:00:09]} 7. Qc2 {[%clk 01:30:17]}
{[%emt 00:01:04]} c6 {[%clk 01:32:57]} {[%emt 00:00:09]} 8. O-O {[%clk
01:25:55]} {[%emt 00:04:52]} O-O {[%clk 01:33:18]} {[%emt 00:00:09]} 9. Bf4
{[%clk 01:26:00]} {[%emt 00:00:25]} a5 {[%clk 01:33:33]} {[%emt 00:00:15]} 10.
Rd1 {[%clk 01:24:42]} {[%emt 00:01:48]} a4 {[%clk 01:33:12]} {[%emt 00:00:51]}
11. a3 {[%clk 01:19:22]} {[%emt 00:05:51]} Ne4 {[%clk 01:29:23]} {[%emt
00:04:17]} 12. Nc3 {[%clk 01:12:50]} {[%emt 00:07:03]} Nxc3 {[%clk 01:28:43]}
{[%emt 00:01:10]} 13. Qxc3 {[%clk 01:11:03]} {[%emt 00:02:17]} Nb6 {[%clk
01:29:05]} {[%emt 00:00:06]} 14. c5 {[%clk 01:02:46]} {[%emt 00:08:49]} Nc4
{[%clk 01:26:25]} {[%emt 00:03:09]} 15. Ne5 {[%clk 00:43:51]} {[%emt 00:19:26]}
Nxe5 {[%clk 01:26:17]} {[%emt 00:00:37]} 16. dxe5 {[%clk 00:42:56]} {[%emt
00:01:27]} Ra5 {[%clk 01:21:46]} {[%emt 00:04:58]} 17. Be3 {[%clk 00:42:28]}
{[%emt 00:01:00]} Rb5 {[%clk 01:22:07]} {[%emt 00:00:09]} 18. Rac1 {[%clk
00:38:32]} {[%emt 00:04:26]} b6 {[%clk 01:15:03]} {[%emt 00:07:34]} 19. b4
{[%clk 00:26:48]} {[%emt 00:12:14]} bxc5 {[%clk 01:08:27]} {[%emt 00:07:06]} 20.
Bxc5 {[%clk 00:25:25]} {[%emt 00:01:54]} Bxc5 {[%clk 01:08:50]} {[%emt
00:00:06]} 21. bxc5 {[%clk 00:25:50]} {[%emt 00:00:04]} Rb3 {[%clk 01:09:16]}
{[%emt 00:00:04]} 22. Qd2 {[%clk 00:17:55]} {[%emt 00:08:26]} Ba6 {[%clk
01:08:34]} {[%emt 00:01:11]} 23. Be4 {[%clk 00:17:06]} {[%emt 00:01:20]} Qb8
{[%clk 01:01:28]} {[%emt 00:07:36]} 24. Bc2 {[%clk 00:17:15]} {[%emt 00:00:21]}
Rxa3 {[%clk 01:01:24]} {[%emt 00:00:34]} 25. Qd4 {[%clk 00:14:41]} {[%emt
00:03:04]} Bxe2 {[%clk 01:00:34]} {[%emt 00:01:19]} 26. Rb1 {[%clk 00:10:38]}
{[%emt 00:04:34]} Qa7 {[%clk 00:46:24]} {[%emt 00:14:39]} 27. Re1 {[%clk
00:10:26]} {[%emt 00:00:42]} Bb5 {[%clk 00:43:23]} {[%emt 00:03:32]} 28. Rb4
{[%clk 00:08:13]} {[%emt 00:02:43]} Qa5 {[%clk 00:38:58]} {[%emt 00:04:54]} 29.
Reb1 {[%clk 00:07:33]} {[%emt 00:01:11]} Ra2 {[%clk 00:38:08]} {[%emt
00:01:20]} 30. Qc3 {[%clk 00:02:51]} {[%emt 00:05:12]} h6 {[%clk 00:36:41]}
{[%emt 00:01:57]} 31. Qd2 {[%clk 00:01:57]} {[%emt 00:01:24]} Bc4 {[%clk
00:35:05]} {[%emt 00:02:06]} 32. Qd1 {[%clk 00:00:34]} {[%emt 00:01:53]} a3
{[%clk 00:35:07]} {[%emt 00:00:28]} 33. Rb8 {[%clk 00:00:41]} {[%emt 00:00:22]}
Qxc5 {[%clk 00:35:14]} {[%emt 00:00:23]} 34. R1b7 {[%clk 00:00:37]} {[%emt
00:00:35]} Ba6 {[%clk 00:33:48]} {[%emt 00:01:56]} 35. Rxf8+ {[%clk 00:00:37]}
{[%emt 00:00:30]} Qxf8 {[%clk 00:33:00]} {[%emt 00:01:18]} 36. Ra7 {[%clk
00:00:34]} {[%emt 00:00:33]} Bb5 {[%clk 00:32:52]} {[%emt 00:00:37]} 37. Bh7+
{[%clk 00:00:36]} {[%emt 00:00:28]} Kh8 {[%clk 00:33:05]} {[%emt 00:00:17]} 38.
Bd3 {[%clk 00:00:35]} {[%emt 00:00:32]} Rxf2 {[%clk 00:30:49]} {[%emt
00:02:46]} 39. Qc1 {[%clk 00:00:35]} {[%emt 00:00:30]} Rb2 {[%clk 00:30:22]}
{[%emt 00:00:56]} 40. Bxb5 {[%clk 00:00:48]} {[%emt 00:00:18]} cxb5 {[%clk
00:30:20]} {[%emt 00:00:32]} 0-1

[Event "Sverigemastarklassen 2025"]
[Site "Uppsala, Sweden"]
[Date "2025.07.02"]
[Round "5.3"]
[White "Sorensen, Hampus"]
[Black "Hillarp-Persson, Tiger"]
[Result "0-1"]
[TimeControl "90 min for 40 move + 30 min with an increment of 30 sec starting move 1"]
[WhiteTitle "IM"]
[BlackTitle "GM"]
[WhiteFideId "8703884"]
[BlackFideId "1700812"]
[WhiteElo "2432"]
[BlackElo "2445"]

1. d4 {[%clk 01:30:40]} {[%emt 00:00:19]} Nf6 {[%clk 01:30:48]} {[%emt
00:00:12]} 2. c4 {[%clk 01:30:59]} {[%emt 00:00:12]} g6 {[%clk 01:31:13]}
{[%emt 00:00:06]} 3. Nc3 {[%clk 01:31:02]} {[%emt 00:00:27]} d6 {[%clk
01:31:36]} {[%emt 00:00:07]} 4. e4 {[%clk 01:29:07]} {[%emt 00:02:24]} e5
{[%clk 01:32:00]} {[%emt 00:00:06]} 5. Nf3 {[%clk 01:23:43]} {[%emt 00:05:55]}
Nbd7 {[%clk 01:31:44]} {[%emt 00:00:45]} 6. Be2 {[%clk 01:21:14]} {[%emt
00:02:59]} Bg7 {[%clk 01:31:20]} {[%emt 00:00:53]} 7. O-O {[%clk 01:18:37]}
{[%emt 00:03:07]} O-O {[%clk 01:31:43]} {[%emt 00:00:07]} 8. Be3 {[%clk
01:15:09]} {[%emt 00:03:58]} c6 {[%clk 01:30:39]} {[%emt 00:01:34]} 9. d5
{[%clk 01:00:57]} {[%emt 00:14:42]} c5 {[%clk 01:30:25]} {[%emt 00:00:43]} 10.
Ne1 {[%clk 00:54:48]} {[%emt 00:06:38]} Ne8 {[%clk 01:29:51]} {[%emt 00:01:04]}
11. Nd3 {[%clk 00:51:15]} {[%emt 00:04:04]} Qe7 {[%clk 01:29:54]} {[%emt
00:00:27]} 12. b4 {[%clk 00:50:37]} {[%emt 00:01:09]} cxb4 {[%clk 01:30:10]}
{[%emt 00:00:14]} 13. Nxb4 {[%clk 00:50:53]} {[%emt 00:00:14]} f5 {[%clk
01:30:30]} {[%emt 00:00:09]} 14. f3 {[%clk 00:44:36]} {[%emt 00:06:47]} Nef6
{[%clk 00:50:39]} {[%emt 00:40:21]} 15. Nd3 {[%clk 00:38:49]} {[%emt 00:06:17]}
b6 {[%clk 00:49:43]} {[%emt 00:01:25]} 16. Nb4 {[%clk 00:32:04]} {[%emt
00:07:16]} Nc5 {[%clk 00:48:19]} {[%emt 00:01:54]} 17. Qc2 {[%clk 00:29:20]}
{[%emt 00:03:15]} Nh5 {[%clk 00:38:59]} {[%emt 00:09:49]} 18. Nd3 {[%clk
00:20:28]} {[%emt 00:09:22]} Bf6 {[%clk 00:11:12]} {[%emt 00:28:16]} 19. Nxc5
{[%clk 00:19:21]} {[%emt 00:01:38]} bxc5 {[%clk 00:11:35]} {[%emt 00:00:07]} 20.
Bf2 {[%clk 00:11:02]} {[%emt 00:08:49]} Bg5 {[%clk 00:10:39]} {[%emt 00:01:25]}
21. Rfe1 {[%clk 00:10:33]} {[%emt 00:00:59]} Rb8 {[%clk 00:05:34]} {[%emt
00:05:36]} 22. Bf1 {[%clk 00:10:23]} {[%emt 00:00:40]} Bd7 {[%clk 00:05:46]}
{[%emt 00:00:19]} 23. Rab1 {[%clk 00:09:49]} {[%emt 00:01:04]} Bh6 {[%clk
00:04:20]} {[%emt 00:01:55]} 24. Rxb8 {[%clk 00:09:15]} {[%emt 00:01:04]} Rxb8
{[%clk 00:04:45]} {[%emt 00:00:05]} 25. Rb1 {[%clk 00:09:39]} {[%emt 00:00:06]}
Rxb1 {[%clk 00:05:00]} {[%emt 00:00:15]} 26. Qxb1 {[%clk 00:10:00]} {[%emt
00:00:10]} Bd2 {[%clk 00:04:09]} {[%emt 00:01:21]} 27. Qb2 {[%clk 00:08:26]}
{[%emt 00:02:04]} Bxc3 {[%clk 00:04:12]} {[%emt 00:00:26]} 28. Qxc3 {[%clk
00:08:54]} {[%emt 00:00:02]} fxe4 {[%clk 00:04:19]} {[%emt 00:00:23]} 29. fxe4
{[%clk 00:09:15]} {[%emt 00:00:08]} g5 {[%clk 00:03:25]} {[%emt 00:01:24]} 30.
Be1 {[%clk 00:03:16]} {[%emt 00:06:30]} h6 {[%clk 00:02:44]} {[%emt 00:01:11]}
31. Qb2 {[%clk 00:02:02]} {[%emt 00:01:43]} Nf6 {[%clk 00:02:35]} {[%emt
00:00:40]} 32. Bd3 {[%clk 00:02:16]} {[%emt 00:00:16]} Be8 {[%clk 00:02:21]}
{[%emt 00:00:44]} 33. Ba5 {[%clk 00:02:04]} {[%emt 00:00:42]} Bg6 {[%clk
00:01:58]} {[%emt 00:00:53]} 34. Qb1 {[%clk 00:01:23]} {[%emt 00:01:11]} Kg7
{[%clk 00:02:02]} {[%emt 00:00:25]} 35. h3 {[%clk 00:01:11]} {[%emt 00:00:43]}
Qd7 {[%clk 00:01:35]} {[%emt 00:00:57]} 36. Qc2 {[%clk 00:00:43]} {[%emt
00:00:59]} Kf7 {[%clk 00:01:17]} {[%emt 00:00:47]} 37. Qf2 {[%clk 00:00:44]}
{[%emt 00:00:29]} Ke7 {[%clk 00:01:31]} {[%emt 00:00:15]} 38. Qe2 {[%clk
00:00:41]} {[%emt 00:00:34]} Qa4 {[%clk 00:00:53]} {[%emt 00:01:08]} 39. Be1
{[%clk 00:00:46]} {[%emt 00:00:25]} Qa3 {[%clk 00:01:18]} {[%emt 00:00:06]} 40.
Kf2 {[%clk 00:00:35]} {[%emt 00:00:41]} Qc1 {[%clk 00:01:05]} {[%emt 00:00:42]}
41. g3 {[%clk 00:19:09]} {[%emt 00:11:56]} Qa1 {[%clk 00:23:41]} {[%emt
00:07:53]} 42. Kf3 {[%clk 00:16:58]} {[%emt 00:02:41]} Kf7 {[%clk 00:16:48]}
{[%emt 00:07:22]} 43. g4 {[%clk 00:09:48]} {[%emt 00:07:40]} Nh5 {[%clk
00:04:56]} {[%emt 00:12:22]} 44. Bd2 {[%clk 00:07:14]} {[%emt 00:03:05]} Nf4
{[%clk 00:05:18]} {[%emt 00:00:08]} 45. Bxf4 {[%clk 00:07:20]} {[%emt
00:00:24]} exf4 {[%clk 00:05:38]} {[%emt 00:00:10]} 46. e5 {[%clk 00:04:45]}
{[%emt 00:03:05]} Qc3 {[%clk 00:05:07]} {[%emt 00:01:01]} 0-1

[Event "Sverigemastarklassen 2025"]
[Site "Uppsala, Sweden"]
[Date "2025.07.02"]
[Round "5.4"]
[White "Storme, Isak"]
[Black "Blomqvist, Erik"]
[Result "1/2-1/2"]
[TimeControl "90 min for 40 move + 30 min with an increment of 30 sec starting move 1"]
[WhiteTitle "IM"]
[BlackTitle "GM"]
[WhiteFideId "1728113"]
[BlackFideId "1709437"]
[WhiteElo "2466"]
[BlackElo "2448"]

1. e4 {[%clk 01:30:53]} {[%emt 00:00:05]} e5 {[%clk 01:30:50]} {[%emt
00:00:10]} 2. Nf3 {[%clk 01:31:18]} {[%emt 00:00:06]} Nc6 {[%clk 01:31:14]}
{[%emt 00:00:06]} 3. Bc4 {[%clk 01:31:40]} {[%emt 00:00:08]} Nf6 {[%clk
01:31:35]} {[%emt 00:00:09]} 4. Ng5 {[%clk 01:32:03]} {[%emt 00:00:07]} d5
{[%clk 01:30:26]} {[%emt 00:01:38]} 5. exd5 {[%clk 01:32:25]} {[%emt 00:00:09]}
Na5 {[%clk 01:30:48]} {[%emt 00:00:08]} 6. Bb5+ {[%clk 01:32:48]} {[%emt
00:00:06]} c6 {[%clk 01:31:08]} {[%emt 00:00:10]} 7. dxc6 {[%clk 01:33:13]}
{[%emt 00:00:06]} bxc6 {[%clk 01:31:30]} {[%emt 00:00:07]} 8. Bd3 {[%clk
01:33:34]} {[%emt 00:00:09]} Nd5 {[%clk 01:31:39]} {[%emt 00:00:21]} 9. Nf3
{[%clk 01:33:54]} {[%emt 00:00:09]} Bd6 {[%clk 01:31:59]} {[%emt 00:00:10]} 10.
O-O {[%clk 01:34:10]} {[%emt 00:00:14]} Nf4 {[%clk 01:31:55]} {[%emt 00:00:34]}
11. Nc3 {[%clk 01:34:05]} {[%emt 00:00:36]} Nxd3 {[%clk 01:31:57]} {[%emt
00:00:29]} 12. cxd3 {[%clk 01:34:29]} {[%emt 00:00:06]} O-O {[%clk 01:32:17]}
{[%emt 00:00:10]} 13. Ne4 {[%clk 01:34:21]} {[%emt 00:00:37]} c5 {[%clk
01:28:57]} {[%emt 00:03:50]} 14. b3 {[%clk 01:34:06]} {[%emt 00:00:45]} Nc6
{[%clk 01:27:47]} {[%emt 00:01:41]} 15. Ba3 {[%clk 01:34:19]} {[%emt 00:00:16]}
Nb4 {[%clk 01:27:27]} {[%emt 00:00:50]} 16. Bxb4 {[%clk 01:34:21]} {[%emt
00:00:29]} cxb4 {[%clk 01:27:51]} {[%emt 00:00:06]} 17. Re1 {[%clk 01:34:13]}
{[%emt 00:00:37]} Bb8 {[%clk 01:09:47]} {[%emt 00:18:34]} 18. Qc2 {[%clk
01:08:43]} {[%emt 00:26:01]} a5 {[%clk 01:03:44]} {[%emt 00:06:32]} 19. Rac1
{[%clk 00:47:24]} {[%emt 00:21:49]} Bb7 {[%clk 00:54:33]} {[%emt 00:09:42]} 20.
Qc5 {[%clk 00:38:13]} {[%emt 00:09:40]} Qxd3 {[%clk 00:29:54]} {[%emt
00:25:09]} 21. Nxe5 {[%clk 00:32:13]} {[%emt 00:06:31]} Bxe5 {[%clk 00:30:03]}
{[%emt 00:00:21]} 22. Qxe5 {[%clk 00:32:28]} {[%emt 00:00:16]} Bxe4 {[%clk
00:27:56]} {[%emt 00:02:36]} 23. Qxe4 {[%clk 00:32:15]} {[%emt 00:00:42]} Qxd2
{[%clk 00:28:14]} {[%emt 00:00:11]} 24. Rc2 {[%clk 00:27:21]} {[%emt 00:05:24]}
Qd7 {[%clk 00:27:13]} {[%emt 00:01:30]} 25. Rce2 {[%clk 00:27:32]} {[%emt
00:00:21]} h6 {[%clk 00:25:23]} {[%emt 00:02:19]} 26. h3 {[%clk 00:27:16]}
{[%emt 00:00:46]} Rfd8 {[%clk 00:24:00]} {[%emt 00:01:52]} 27. Qe5 {[%clk
00:26:10]} {[%emt 00:01:38]} Qd5 {[%clk 00:20:42]} {[%emt 00:03:47]} 28. Qf4
{[%clk 00:23:41]} {[%emt 00:03:00]} Ra6 {[%clk 00:09:56]} {[%emt 00:11:16]} 29.
Re5 {[%clk 00:22:43]} {[%emt 00:01:28]} Re6 {[%clk 00:10:01]} {[%emt 00:00:23]}
30. Rxe6 {[%clk 00:19:34]} {[%emt 00:03:41]} fxe6 {[%clk 00:10:27]} {[%emt
00:00:04]} 31. Re5 {[%clk 00:17:38]} {[%emt 00:02:27]} Qd1+ {[%clk 00:08:10]}
{[%emt 00:02:47]} 32. Kh2 {[%clk 00:18:01]} {[%emt 00:00:06]} Qd6 {[%clk
00:08:15]} {[%emt 00:00:24]} 33. Qg3 {[%clk 00:12:57]} {[%emt 00:05:34]} Qb6
{[%clk 00:05:32]} {[%emt 00:03:12]} 34. f4 {[%clk 00:07:41]} {[%emt 00:05:47]}
Rd5 {[%clk 00:01:28]} {[%emt 00:04:34]} 35. Re4 {[%clk 00:06:46]} {[%emt
00:01:26]} Kf7 {[%clk 00:01:33]} {[%emt 00:00:24]} 36. Qf3 {[%clk 00:05:31]}
{[%emt 00:01:46]} Qd6 {[%clk 00:01:43]} {[%emt 00:00:19]} 37. h4 {[%clk
00:03:19]} {[%emt 00:02:43]} h5 {[%clk 00:01:36]} {[%emt 00:00:37]} 38. Re5
{[%clk 00:03:22]} {[%emt 00:00:27]} g6 {[%clk 00:01:47]} {[%emt 00:00:18]} 39.
Qg3 {[%clk 00:02:21]} {[%emt 00:01:31]} Qd8 {[%clk 00:00:46]} {[%emt 00:01:31]}
40. Qf2 {[%clk 00:00:41]} {[%emt 00:02:10]} Rd2 {[%clk 00:01:03]} {[%emt
00:00:13]} 41. Qa7+ {[%clk 00:29:45]} {[%emt 00:01:26]} Rd7 {[%clk 00:30:34]}
{[%emt 00:00:58]} 42. Qf2 {[%clk 00:29:56]} {[%emt 00:00:19]} Rd2 {[%clk
00:31:01]} {[%emt 00:00:04]} 43. Qa7+ {[%clk 00:28:55]} {[%emt 00:01:31]} Rd7
{[%clk 00:31:23]} {[%emt 00:00:06]} 44. Qf2 {[%clk 00:29:09]} {[%emt 00:00:17]}
Rd2 {[%clk 00:31:49]} {[%emt 00:00:04]} 1/2-1/2